[Event "Titled Tuesday Blitz August 31 2021"]
[White "Demidov, Mikhail"]
[Black "De Silva, L M S T"]
[WhiteFideId "4197143"]
[BlackFideId "9953698"]
[WhiteElo "2796"]
[BlackElo "2629"]
[Result "1-0"]
[Round "04"]
[TimeControl "180+1"]
[Date "2021.08.31"]
[WhiteClock "0:00:05"]
[BlackClock "0:00:08"]

1. Nf3 {[%clk 0:02:58]}  Nf6 {[%clk 0:02:59]} 2. g3 {[%clk 0:02:57]}  b6 {[%clk 0:03:00]} 3. Bg2 {[%clk 0:02:57]}  Bb7 {[%clk 0:03:00]} 4. O-O {[%clk 0:02:56]}  g6 {[%clk 0:03:01]} 5. c4 {[%clk 0:02:55]}  Bg7 {[%clk 0:03:01]} 6. Nc3 {[%clk 0:02:56]}  O-O {[%clk 0:03:01]} 7. Re1 {[%clk 0:02:51]}  Ne4 {[%clk 0:02:55]} 8. Nxe4 {[%clk 0:02:50]}  Bxe4 {[%clk 0:02:56]} 9. d3 {[%clk 0:02:48]}  Bb7 {[%clk 0:02:56]} 10. h4 {[%clk 0:02:47]}  e5 {[%clk 0:02:55]} 11. h5 {[%clk 0:02:45]}  Nc6 {[%clk 0:02:54]} 12. Bg5 {[%clk 0:02:37]}  f6 {[%clk 0:02:48]} 13. Bd2 {[%clk 0:02:31]}  Ne7 {[%clk 0:02:41]} 14. h6 {[%clk 0:02:23]}  Bh8 {[%clk 0:02:40]} 15. c5 {[%clk 0:02:23]}  bxc5 {[%clk 0:02:30]} 16. e4 {[%clk 0:02:12]}  Rb8 {[%clk 0:02:26]} 17. Rc1 {[%clk 0:02:09]}  d6 {[%clk 0:02:24]} 18. b4 {[%clk 0:02:08]}  cxb4 {[%clk 0:02:18]} 19. Bxb4 {[%clk 0:02:07]}  c5 {[%clk 0:02:14]} 20. Bd2 {[%clk 0:01:44]}  Bc8 {[%clk 0:02:13]} 21. Qa4 {[%clk 0:01:37]}  Be6 {[%clk 0:01:52]} 22. Rb1 {[%clk 0:01:26]}  Qd7 {[%clk 0:01:51]} 23. Qa3 {[%clk 0:01:25]}  Nc6 {[%clk 0:01:49]} 24. Be3 {[%clk 0:01:21]}  Rxb1 {[%clk 0:01:48]} 25. Rxb1 {[%clk 0:01:20]}  Rb8 {[%clk 0:01:49]} 26. Rxb8+ {[%clk 0:01:19]}  Nxb8 {[%clk 0:01:50]} 27. Nd2 {[%clk 0:01:18]}  Nc6 {[%clk 0:01:48]} 28. Nc4 {[%clk 0:01:17]}  f5 {[%clk 0:01:44]} 29. exf5 {[%clk 0:01:06]}  gxf5 {[%clk 0:01:45]} 30. Qa4 {[%clk 0:01:05]}  d5 {[%clk 0:01:38]} 31. Na5 {[%clk 0:00:59]}  Nxa5 {[%clk 0:01:32]} 32. Qxa5 {[%clk 0:00:58]}  d4 {[%clk 0:01:32]} 33. Bg5 {[%clk 0:00:57]}  c4 {[%clk 0:01:09]} 34. dxc4 {[%clk 0:00:51]}  Bxc4 {[%clk 0:01:10]} 35. Bc6 {[%clk 0:00:40]}  Qxc6 {[%clk 0:00:50]} 36. Qd8+ {[%clk 0:00:39]}  Kf7 {[%clk 0:00:51]} 37. Qxh8 {[%clk 0:00:39]}  Kg6 {[%clk 0:00:44]} 38. Bd2 {[%clk 0:00:31]}  Qc7 {[%clk 0:00:32]} 39. Qe8+ {[%clk 0:00:21]}  Bf7 {[%clk 0:00:31]} 40. Qf8 {[%clk 0:00:20]}  Bd5 {[%clk 0:00:22]} 41. Qe8+ {[%clk 0:00:17]}  Kf6 {[%clk 0:00:17]} 42. Qf8+ {[%clk 0:00:15]}  Ke6 {[%clk 0:00:18]} 43. Bg5 {[%clk 0:00:14]}  Qb7 {[%clk 0:00:11]} 44. Kh2 {[%clk 0:00:13]}  Kd7 {[%clk 0:00:09]} 45. Qe7+ {[%clk 0:00:12]}  Kc6 {[%clk 0:00:10]} 46. Qxe5 {[%clk 0:00:11]}  Qb1 {[%clk 0:00:10]} 47. Qf6+ {[%clk 0:00:07]}  Kb5 {[%clk 0:00:10]} 48. g4 {[%clk 0:00:07]}  Qh1+ {[%clk 0:00:10]} 49. Kg3 {[%clk 0:00:07]}  Qg2+ {[%clk 0:00:10]} 50. Kf4 {[%clk 0:00:07]}  Qxg4+ {[%clk 0:00:11]} 51. Ke5 {[%clk 0:00:07]}  Qe4+ {[%clk 0:00:12]} 52. Kd6 {[%clk 0:00:06]}  d3 {[%clk 0:00:12]} 53. Qb2+ {[%clk 0:00:06]}  Kc4 {[%clk 0:00:11]} 54. Qb3+ {[%clk 0:00:05]}  Kd4 {[%clk 0:00:08]} 55. Bf6+ {[%clk 0:00:05]} 1-0


[Site "https://www.chess.com"]

[Event "Titled Tuesday Blitz August 31 2021"]
[White "Eljanov, Pavel"]
[Black "Mikhailovsky, Vladimir"]
[WhiteFideId "14102951"]
[BlackFideId "34105414"]
[WhiteElo "2602"]
[BlackElo "2315"]
[Result "0-1"]
[Round "04"]
[TimeControl "180+1"]
[Date "2021.08.31"]
[WhiteClock "0:00:01"]
[BlackClock "0:00:07"]

1. Nf3 {[%clk 0:03:00]}  d5 {[%clk 0:02:59]} 2. g3 {[%clk 0:03:00]}  c6 {[%clk 0:03:00]} 3. c4 {[%clk 0:03:00]}  Nf6 {[%clk 0:02:55]} 4. Bg2 {[%clk 0:03:00]}  Nbd7 {[%clk 0:02:52]} 5. d4 {[%clk 0:02:56]}  dxc4 {[%clk 0:02:49]} 6. a4 {[%clk 0:02:52]}  e6 {[%clk 0:02:36]} 7. O-O {[%clk 0:02:46]}  Bb4 {[%clk 0:02:35]} 8. Na3 {[%clk 0:02:43]}  Bxa3 {[%clk 0:02:29]} 9. Rxa3 {[%clk 0:02:43]}  Qe7 {[%clk 0:02:26]} 10. b3 {[%clk 0:02:36]}  c3 {[%clk 0:02:16]} 11. Qc2 {[%clk 0:02:33]}  e5 {[%clk 0:02:14]} 12. dxe5 {[%clk 0:02:26]}  Nxe5 {[%clk 0:02:15]} 13. Qxc3 {[%clk 0:02:16]}  Nxf3+ {[%clk 0:02:14]} 14. Bxf3 {[%clk 0:02:09]}  O-O {[%clk 0:02:15]} 15. Ra2 {[%clk 0:02:08]}  Re8 {[%clk 0:01:57]} 16. Ba3 {[%clk 0:02:07]}  Qe6 {[%clk 0:01:51]} 17. Rd1 {[%clk 0:02:04]}  Qh3 {[%clk 0:01:51]} 18. Bg2 {[%clk 0:01:56]}  Qh5 {[%clk 0:01:51]} 19. Qc5 {[%clk 0:01:50]}  Qg6 {[%clk 0:01:24]} 20. Rad2 {[%clk 0:01:44]}  Be6 {[%clk 0:01:19]} 21. Rd3 {[%clk 0:01:09]}  Bd5 {[%clk 0:01:11]} 22. Re3 {[%clk 0:00:40]}  Rxe3 {[%clk 0:01:06]} 23. Qxe3 {[%clk 0:00:40]}  Re8 {[%clk 0:00:59]} 24. Qxa7 {[%clk 0:00:40]}  Qc2 {[%clk 0:00:47]} 25. Qd4 {[%clk 0:00:22]}  Rxe2 {[%clk 0:00:39]} 26. Bf1 {[%clk 0:00:18]}  Re8 {[%clk 0:00:26]} 27. Qd3 {[%clk 0:00:16]}  Qa2 {[%clk 0:00:14]} 28. Bc5 {[%clk 0:00:14]}  Bxb3 {[%clk 0:00:13]} 29. Rd2 {[%clk 0:00:08]}  Qxa4 {[%clk 0:00:13]} 30. Bd4 {[%clk 0:00:07]}  Bd5 {[%clk 0:00:10]} 31. Bxf6 {[%clk 0:00:04]}  gxf6 {[%clk 0:00:11]} 32. Rb2 {[%clk 0:00:04]}  b5 {[%clk 0:00:10]} 33. Qd2 {[%clk 0:00:04]}  Qe4 {[%clk 0:00:09]} 34. f3 {[%clk 0:00:03]}  Qxf3 {[%clk 0:00:10]} 35. Rb4 {[%clk 0:00:03]}  Re4 {[%clk 0:00:07]} 36. Rxe4 {[%clk 0:00:03]}  Qxe4 {[%clk 0:00:08]} 37. Kf2 {[%clk 0:00:03]}  c5 {[%clk 0:00:07]} 38. Bd3 {[%clk 0:00:02]}  Qd4+ {[%clk 0:00:07]} 39. Ke2 {[%clk 0:00:01]}  c4 {[%clk 0:00:07]} 40. Bxh7+ {[%clk 0:00:01]}  Kg7 {[%clk 0:00:06]} 41. Qxd4 {[%clk 0:00:02]}  c3 {[%clk 0:00:07]} 42. Qxd5 {[%clk 0:00:01]}  c2 {[%clk 0:00:07]} 0-1


[Site "https://www.chess.com"]

[Event "Titled Tuesday Blitz August 31 2021"]
[White "Ezat, Mohamed"]
[Black "Yanchenko, Roman"]
[WhiteFideId "10600906"]
[BlackFideId "4137329"]
[WhiteElo "2531"]
[BlackElo "2739"]
[Result "0-1"]
[Round "04"]
[TimeControl "180+1"]
[Date "2021.08.31"]
[WhiteClock "0:00:31"]
[BlackClock "0:01:12"]

1. d4 {[%clk 0:03:00]}  d5 {[%clk 0:03:00]} 2. c4 {[%clk 0:03:01]}  c6 {[%clk 0:03:00]} 3. Nc3 {[%clk 0:03:01]}  Nf6 {[%clk 0:02:59]} 4. cxd5 {[%clk 0:03:02]}  cxd5 {[%clk 0:02:59]} 5. Bf4 {[%clk 0:03:02]}  Nc6 {[%clk 0:02:59]} 6. e3 {[%clk 0:03:02]}  a6 {[%clk 0:02:59]} 7. Bd3 {[%clk 0:03:01]}  g6 {[%clk 0:02:58]} 8. h3 {[%clk 0:03:00]}  Bf5 {[%clk 0:02:58]} 9. Bxf5 {[%clk 0:02:57]}  gxf5 {[%clk 0:02:59]} 10. Nf3 {[%clk 0:02:57]}  e6 {[%clk 0:02:59]} 11. Rc1 {[%clk 0:02:56]}  Ne4 {[%clk 0:02:58]} 12. g4 {[%clk 0:02:55]}  Nxc3 {[%clk 0:02:55]} 13. bxc3 {[%clk 0:02:54]}  fxg4 {[%clk 0:02:55]} 14. hxg4 {[%clk 0:02:53]}  Bd6 {[%clk 0:02:54]} 15. Bxd6 {[%clk 0:02:41]}  Qxd6 {[%clk 0:02:55]} 16. c4 {[%clk 0:02:35]}  Qb4+ {[%clk 0:02:49]} 17. Kf1 {[%clk 0:02:00]}  dxc4 {[%clk 0:02:48]} 18. Rb1 {[%clk 0:01:57]}  Qe7 {[%clk 0:02:47]} 19. Qa4 {[%clk 0:01:56]}  O-O {[%clk 0:01:53]} 20. Qxc4 {[%clk 0:01:51]}  f5 {[%clk 0:01:48]} 21. d5 {[%clk 0:01:37]}  exd5 {[%clk 0:01:45]} 22. Qxd5+ {[%clk 0:01:33]}  Qf7 {[%clk 0:01:45]} 23. Qxf7+ {[%clk 0:01:18]}  Rxf7 {[%clk 0:01:46]} 24. Ng5 {[%clk 0:01:13]}  Rg7 {[%clk 0:01:46]} 25. Ne6 {[%clk 0:01:13]}  Rxg4 {[%clk 0:01:46]} 26. Rxb7 {[%clk 0:01:12]}  Re8 {[%clk 0:01:35]} 27. Ng7 {[%clk 0:00:40]}  Rxg7 {[%clk 0:01:34]} 28. Rb6 {[%clk 0:00:41]}  Rg6 {[%clk 0:01:30]} 29. Rb7 {[%clk 0:00:38]}  h6 {[%clk 0:01:29]} 30. Rh5 {[%clk 0:00:36]}  f4 {[%clk 0:01:22]} 31. exf4 {[%clk 0:00:35]}  Nd4 {[%clk 0:01:22]} 32. f5 {[%clk 0:00:35]}  Rg7 {[%clk 0:01:15]} 33. Rb6 {[%clk 0:00:33]}  Nf3 {[%clk 0:01:15]} 34. Re6 {[%clk 0:00:30]}  Rg1+ {[%clk 0:01:12]} 35. Ke2 {[%clk 0:00:31]}  Nd4+ {[%clk 0:01:12]} 0-1


[Site "https://www.chess.com"]

[Event "Titled Tuesday Blitz August 31 2021"]
[White "FGHSMN"]
[Black "Vasli, Aref"]
[BlackFideId "417521"]
[WhiteElo "2667"]
[BlackElo "2257"]
[Result "1-0"]
[Round "04"]
[TimeControl "180+1"]
[Date "2021.08.31"]
[WhiteClock "0:01:04"]
[BlackClock "0:00:04"]

1. b3 {[%clk 0:03:00]}  Nf6 {[%clk 0:02:55]} 2. Bb2 {[%clk 0:03:00]}  d5 {[%clk 0:02:54]} 3. Nf3 {[%clk 0:03:00]}  c6 {[%clk 0:02:55]} 4. g3 {[%clk 0:02:59]}  g6 {[%clk 0:02:51]} 5. Bg2 {[%clk 0:02:59]}  Bg7 {[%clk 0:02:51]} 6. O-O {[%clk 0:03:00]}  O-O {[%clk 0:02:52]} 7. c4 {[%clk 0:03:00]}  Re8 {[%clk 0:02:44]} 8. d3 {[%clk 0:02:58]}  e5 {[%clk 0:02:35]} 9. Nxe5 {[%clk 0:02:51]}  Ng4 {[%clk 0:02:31]} 10. d4 {[%clk 0:02:42]}  dxc4 {[%clk 0:02:29]} 11. Nxc4 {[%clk 0:02:38]}  Na6 {[%clk 0:02:24]} 12. e3 {[%clk 0:02:32]}  Nc7 {[%clk 0:02:18]} 13. Nc3 {[%clk 0:02:30]}  h5 {[%clk 0:02:12]} 14. h3 {[%clk 0:02:28]}  Nf6 {[%clk 0:02:11]} 15. e4 {[%clk 0:02:28]}  Ne6 {[%clk 0:02:00]} 16. e5 {[%clk 0:02:25]}  Nh7 {[%clk 0:01:47]} 17. Nd6 {[%clk 0:02:21]}  Rf8 {[%clk 0:01:43]} 18. f4 {[%clk 0:02:20]}  Nc7 {[%clk 0:01:01]} 19. f5 {[%clk 0:02:16]}  Bh6 {[%clk 0:01:00]} 20. fxg6 {[%clk 0:02:13]}  fxg6 {[%clk 0:01:00]} 21. Qd3 {[%clk 0:02:13]}  Kg7 {[%clk 0:00:57]} 22. d5 {[%clk 0:02:11]}  Ng5 {[%clk 0:00:50]} 23. e6 {[%clk 0:02:08]}  Kh7 {[%clk 0:00:45]} 24. Nf7 {[%clk 0:01:42]}  Nxf7 {[%clk 0:00:43]} 25. exf7 {[%clk 0:01:41]}  Nxd5 {[%clk 0:00:29]} 26. Nxd5 {[%clk 0:01:28]}  cxd5 {[%clk 0:00:28]} 27. Rf6 {[%clk 0:01:28]}  Qxf6 {[%clk 0:00:18]} 28. Bxf6 {[%clk 0:01:26]}  Rxf7 {[%clk 0:00:19]} 29. Rf1 {[%clk 0:01:24]}  Be6 {[%clk 0:00:14]} 30. Bxd5 {[%clk 0:01:18]}  Bxd5 {[%clk 0:00:12]} 31. Qxd5 {[%clk 0:01:19]}  Raf8 {[%clk 0:00:12]} 32. g4 {[%clk 0:01:03]}  Bg7 {[%clk 0:00:04]} 33. g5 {[%clk 0:01:03]}  Bxf6 {[%clk 0:00:02]} 34. gxf6 {[%clk 0:01:03]}  Rxf6 {[%clk 0:00:03]} 35. Rxf6 {[%clk 0:01:04]}  Rxf6 {[%clk 0:00:04]} 36. Qxb7+ {[%clk 0:01:04]}  Kh6 {[%clk 0:00:04]} 37. Qxa7 {[%clk 0:01:05]}  Rf5 {[%clk 0:00:04]} 38. Qe3+ {[%clk 0:01:04]} 1-0


[Site "https://www.chess.com"]

[Event "Titled Tuesday Blitz August 31 2021"]
[White "Florescu, Codrut-Constantin"]
[Black "Fier, Alexandr"]
[WhiteFideId "1202200"]
[BlackFideId "2107139"]
[WhiteElo "2243"]
[BlackElo "2569"]
[Result "0-1"]
[Round "04"]
[TimeControl "180+1"]
[Date "2021.08.31"]
[WhiteClock "0:00:11"]
[BlackClock "0:00:12"]

1. d4 {[%clk 0:03:00]}  Nf6 {[%clk 0:02:56]} 2. c4 {[%clk 0:03:00]}  c5 {[%clk 0:02:56]} 3. d5 {[%clk 0:03:00]}  e6 {[%clk 0:02:57]} 4. Nc3 {[%clk 0:03:00]}  exd5 {[%clk 0:02:57]} 5. cxd5 {[%clk 0:03:00]}  d6 {[%clk 0:02:58]} 6. e4 {[%clk 0:03:01]}  g6 {[%clk 0:02:58]} 7. f3 {[%clk 0:03:01]}  Bg7 {[%clk 0:02:58]} 8. Bg5 {[%clk 0:03:02]}  O-O {[%clk 0:02:54]} 9. Qd2 {[%clk 0:03:02]}  h6 {[%clk 0:02:54]} 10. Be3 {[%clk 0:03:01]}  Re8 {[%clk 0:02:47]} 11. Nge2 {[%clk 0:03:00]}  a6 {[%clk 0:02:45]} 12. a4 {[%clk 0:02:59]}  Nbd7 {[%clk 0:02:35]} 13. Ng3 {[%clk 0:02:57]}  h5 {[%clk 0:02:35]} 14. Be2 {[%clk 0:02:56]}  h4 {[%clk 0:02:29]} 15. Nf1 {[%clk 0:02:56]}  Nh7 {[%clk 0:02:29]} 16. Qc1 {[%clk 0:02:43]}  Ne5 {[%clk 0:02:26]} 17. Nd2 {[%clk 0:02:41]}  f5 {[%clk 0:02:26]} 18. O-O {[%clk 0:02:35]}  Bd7 {[%clk 0:02:23]} 19. a5 {[%clk 0:02:26]}  Rb8 {[%clk 0:02:21]} 20. Nc4 {[%clk 0:02:25]}  Nxc4 {[%clk 0:02:07]} 21. Bxc4 {[%clk 0:02:26]}  h3 {[%clk 0:02:07]} 22. Rf2 {[%clk 0:02:05]}  hxg2 {[%clk 0:01:50]} 23. Rxg2 {[%clk 0:02:03]}  Nf8 {[%clk 0:01:51]} 24. Bg5 {[%clk 0:01:50]}  Qc7 {[%clk 0:01:43]} 25. Bh6 {[%clk 0:01:42]}  Bd4+ {[%clk 0:01:39]} 26. Kh1 {[%clk 0:01:39]}  Kf7 {[%clk 0:01:27]} 27. Ne2 {[%clk 0:01:37]}  Bf6 {[%clk 0:01:27]} 28. Ng3 {[%clk 0:01:23]}  b5 {[%clk 0:01:15]} 29. axb6 {[%clk 0:01:22]}  Rxb6 {[%clk 0:01:15]} 30. exf5 {[%clk 0:01:21]}  Bxf5 {[%clk 0:01:05]} 31. Nxf5 {[%clk 0:01:21]}  gxf5 {[%clk 0:01:06]} 32. Qf4 {[%clk 0:01:15]}  Qc8 {[%clk 0:01:02]} 33. Rag1 {[%clk 0:01:06]}  Re5 {[%clk 0:00:39]} 34. b3 {[%clk 0:00:54]}  Rb8 {[%clk 0:00:29]} 35. Qg3 {[%clk 0:00:51]}  Ke7 {[%clk 0:00:28]} 36. Bg7 {[%clk 0:00:40]}  Bxg7 {[%clk 0:00:20]} 37. Qxg7+ {[%clk 0:00:39]}  Ke8 {[%clk 0:00:21]} 38. Qf6 {[%clk 0:00:32]}  Qd8 {[%clk 0:00:20]} 39. Qh6 {[%clk 0:00:23]}  Rb7 {[%clk 0:00:20]} 40. Rg7 {[%clk 0:00:20]}  Rbe7 {[%clk 0:00:19]} 41. Qf6 {[%clk 0:00:16]}  Kd7 {[%clk 0:00:18]} 42. Rg8 {[%clk 0:00:14]}  Re8 {[%clk 0:00:12]} 43. Bxa6 {[%clk 0:00:14]}  Kc7 {[%clk 0:00:12]} 44. Bb5 {[%clk 0:00:13]}  Qxf6 {[%clk 0:00:13]} 45. R1g7+ {[%clk 0:00:11]}  Kb6 {[%clk 0:00:13]} 46. Bxe8 {[%clk 0:00:11]}  Rxe8 {[%clk 0:00:12]} 0-1


[Site "https://www.chess.com"]

[Event "Titled Tuesday Blitz August 31 2021"]
[White "Hansen, Eric"]
[Black "Tanenbaum, Zachary"]
[WhiteFideId "2606771"]
[BlackFideId "2060850"]
[WhiteElo "2568"]
[BlackElo "2165"]
[Result "1-0"]
[Round "04"]
[TimeControl "180+1"]
[Date "2021.08.31"]
[WhiteClock "0:00:07"]
[BlackClock "0:00:02"]

1. e4 {[%clk 0:03:00]}  e5 {[%clk 0:02:59]} 2. Nf3 {[%clk 0:03:00]}  Nc6 {[%clk 0:03:00]} 3. Bb5 {[%clk 0:02:59]}  a6 {[%clk 0:03:00]} 4. Ba4 {[%clk 0:03:00]}  d6 {[%clk 0:03:00]} 5. c3 {[%clk 0:03:00]}  Nf6 {[%clk 0:03:00]} 6. d4 {[%clk 0:02:56]}  b5 {[%clk 0:03:00]} 7. Bb3 {[%clk 0:02:55]}  Be7 {[%clk 0:03:00]} 8. O-O {[%clk 0:02:55]}  O-O {[%clk 0:03:01]} 9. h3 {[%clk 0:02:56]}  Bb7 {[%clk 0:02:59]} 10. Re1 {[%clk 0:02:55]}  Nb8 {[%clk 0:02:53]} 11. dxe5 {[%clk 0:02:42]}  dxe5 {[%clk 0:02:54]} 12. Qxd8 {[%clk 0:02:43]}  Bxd8 {[%clk 0:02:54]} 13. Nxe5 {[%clk 0:02:43]}  Nxe4 {[%clk 0:02:54]} 14. Be3 {[%clk 0:02:32]}  Bf6 {[%clk 0:02:51]} 15. Ng4 {[%clk 0:02:19]}  Be7 {[%clk 0:02:42]} 16. Nd2 {[%clk 0:02:16]}  Nxd2 {[%clk 0:02:35]} 17. Bxd2 {[%clk 0:02:16]}  Bd6 {[%clk 0:02:35]} 18. Ne5 {[%clk 0:02:16]}  Nc6 {[%clk 0:02:32]} 19. Bf4 {[%clk 0:02:13]}  Nxe5 {[%clk 0:02:28]} 20. Bxe5 {[%clk 0:02:13]}  Bxe5 {[%clk 0:02:28]} 21. Rxe5 {[%clk 0:02:14]}  Rfe8 {[%clk 0:02:29]} 22. Rae1 {[%clk 0:02:10]}  Kf8 {[%clk 0:02:29]} 23. Kf1 {[%clk 0:02:07]}  Rxe5 {[%clk 0:02:19]} 24. Rxe5 {[%clk 0:02:07]}  Re8 {[%clk 0:02:20]} 25. Rc5 {[%clk 0:01:58]}  Re7 {[%clk 0:02:21]} 26. a4 {[%clk 0:01:58]}  Be4 {[%clk 0:02:15]} 27. Kg1 {[%clk 0:01:47]}  Bd3 {[%clk 0:02:06]} 28. a5 {[%clk 0:01:43]}  Ke8 {[%clk 0:01:57]} 29. Rc6 {[%clk 0:01:41]}  Be4 {[%clk 0:01:39]} 30. Rxa6 {[%clk 0:01:20]}  Kd7 {[%clk 0:01:38]} 31. c4 {[%clk 0:01:20]}  Bb7 {[%clk 0:00:37]} 32. Ra7 {[%clk 0:01:10]}  Kc8 {[%clk 0:00:37]} 33. cxb5 {[%clk 0:01:10]}  Kb8 {[%clk 0:00:37]} 34. b6 {[%clk 0:01:08]}  cxb6 {[%clk 0:00:38]} 35. axb6 {[%clk 0:01:07]}  Re1+ {[%clk 0:00:36]} 36. Kh2 {[%clk 0:01:07]}  Re2 {[%clk 0:00:37]} 37. Kg3 {[%clk 0:01:05]}  f5 {[%clk 0:00:19]} 38. f3 {[%clk 0:00:47]}  Rxb2 {[%clk 0:00:18]} 39. Ra3 {[%clk 0:00:37]}  g5 {[%clk 0:00:17]} 40. h4 {[%clk 0:00:29]}  f4+ {[%clk 0:00:10]} 41. Kh3 {[%clk 0:00:27]}  Bc8+ {[%clk 0:00:08]} 42. Kh2 {[%clk 0:00:28]}  g4 {[%clk 0:00:08]} 43. fxg4 {[%clk 0:00:25]}  f3 {[%clk 0:00:09]} 44. Bd5 {[%clk 0:00:25]}  Rxg2+ {[%clk 0:00:04]} 45. Kh1 {[%clk 0:00:26]}  Bb7 {[%clk 0:00:04]} 46. Bxb7 {[%clk 0:00:20]}  Kxb7 {[%clk 0:00:05]} 47. Rxf3 {[%clk 0:00:16]}  Rxg4 {[%clk 0:00:06]} 48. Rf7+ {[%clk 0:00:16]}  Kxb6 {[%clk 0:00:06]} 49. Rxh7 {[%clk 0:00:17]}  Kc6 {[%clk 0:00:07]} 50. Kh2 {[%clk 0:00:17]}  Kd6 {[%clk 0:00:07]} 51. Kh3 {[%clk 0:00:18]}  Rg1 {[%clk 0:00:07]} 52. Rf7 {[%clk 0:00:17]}  Ke6 {[%clk 0:00:08]} 53. Rf2 {[%clk 0:00:17]}  Ke7 {[%clk 0:00:07]} 54. h5 {[%clk 0:00:17]}  Ke6 {[%clk 0:00:06]} 55. Kh4 {[%clk 0:00:18]}  Ke7 {[%clk 0:00:06]} 56. h6 {[%clk 0:00:18]}  Ke6 {[%clk 0:00:06]} 57. Kh5 {[%clk 0:00:19]}  Ke7 {[%clk 0:00:06]} 58. h7 {[%clk 0:00:19]}  Rh1+ {[%clk 0:00:06]} 59. Kg6 {[%clk 0:00:19]}  Rg1+ {[%clk 0:00:06]} 60. Kf5 {[%clk 0:00:15]}  Rh1 {[%clk 0:00:06]} 61. Ra2 {[%clk 0:00:15]}  Kf7 {[%clk 0:00:04]} 62. Ra7+ {[%clk 0:00:14]}  Kf8 {[%clk 0:00:04]} 63. Ke5 {[%clk 0:00:07]}  Rh2 {[%clk 0:00:04]} 64. Ke6 {[%clk 0:00:06]}  Rh1 {[%clk 0:00:03]} 65. Rf7+ {[%clk 0:00:05]}  Ke8 {[%clk 0:00:04]} 66. Rg7 {[%clk 0:00:05]}  Rh6+ {[%clk 0:00:03]} 67. Kd5 {[%clk 0:00:06]}  Rh5+ {[%clk 0:00:04]} 68. Kd4 {[%clk 0:00:06]}  Rh4+ {[%clk 0:00:04]} 69. Ke3 {[%clk 0:00:06]}  Rh3+ {[%clk 0:00:04]} 70. Kf2 {[%clk 0:00:07]}  Rg3 {[%clk 0:00:02]} 71. Kxg3 {[%clk 0:00:07]} 1-0


[Site "https://www.chess.com"]

[Event "Titled Tuesday Blitz August 31 2021"]
[White "Harutjunyan, Gevorg"]
[Black "Siniauski, Artsiom"]
[WhiteFideId "13300873"]
[BlackFideId "13512269"]
[WhiteElo "2498"]
[BlackElo "2210"]
[Result "1-0"]
[Round "04"]
[TimeControl "180+1"]
[Date "2021.08.31"]
[WhiteClock "0:00:04"]
[BlackClock "0:00:11"]

1. e4 {[%clk 0:02:59]}  e6 {[%clk 0:03:00]} 2. d4 {[%clk 0:02:58]}  d5 {[%clk 0:03:01]} 3. Nc3 {[%clk 0:02:59]}  Nf6 {[%clk 0:03:00]} 4. Bg5 {[%clk 0:02:58]}  Bb4 {[%clk 0:03:00]} 5. e5 {[%clk 0:02:58]}  h6 {[%clk 0:03:00]} 6. Be3 {[%clk 0:02:58]}  Ne4 {[%clk 0:03:00]} 7. Qg4 {[%clk 0:02:50]}  Kf8 {[%clk 0:02:57]} 8. a3 {[%clk 0:02:48]}  Bxc3+ {[%clk 0:02:56]} 9. bxc3 {[%clk 0:02:48]}  c5 {[%clk 0:02:55]} 10. Bd3 {[%clk 0:02:42]}  Nxc3 {[%clk 0:02:52]} 11. dxc5 {[%clk 0:02:41]}  Qa5 {[%clk 0:02:49]} 12. Qb4 {[%clk 0:02:40]}  Qxb4 {[%clk 0:02:14]} 13. axb4 {[%clk 0:02:41]}  Bd7 {[%clk 0:02:13]} 14. Nf3 {[%clk 0:02:32]}  a6 {[%clk 0:02:07]} 15. Nd4 {[%clk 0:02:23]}  Nc6 {[%clk 0:02:03]} 16. Nxc6 {[%clk 0:02:03]}  Bxc6 {[%clk 0:02:04]} 17. f3 {[%clk 0:02:03]}  Ke7 {[%clk 0:02:03]} 18. Kd2 {[%clk 0:01:59]}  Nb5 {[%clk 0:02:02]} 19. c3 {[%clk 0:01:56]}  Rhd8 {[%clk 0:02:00]} 20. Bd4 {[%clk 0:01:56]}  Nc7 {[%clk 0:01:57]} 21. g4 {[%clk 0:01:53]}  Bb5 {[%clk 0:01:57]} 22. Bc2 {[%clk 0:01:53]}  Bc4 {[%clk 0:01:55]} 23. f4 {[%clk 0:01:53]}  h5 {[%clk 0:01:48]} 24. h3 {[%clk 0:01:45]}  Rh8 {[%clk 0:01:47]} 25. f5 {[%clk 0:01:40]}  a5 {[%clk 0:01:39]} 26. f6+ {[%clk 0:01:21]}  gxf6 {[%clk 0:01:37]} 27. exf6+ {[%clk 0:01:21]}  Kd7 {[%clk 0:01:35]} 28. g5 {[%clk 0:01:20]}  h4 {[%clk 0:01:29]} 29. Be5 {[%clk 0:00:59]}  Rhg8 {[%clk 0:01:26]} 30. g6 {[%clk 0:00:49]}  fxg6 {[%clk 0:01:22]} 31. f7 {[%clk 0:00:49]}  Rgf8 {[%clk 0:01:17]} 32. Bxg6 {[%clk 0:00:49]}  d4 {[%clk 0:01:02]} 33. Rxa5 {[%clk 0:00:42]}  Rxa5 {[%clk 0:00:59]} 34. bxa5 {[%clk 0:00:43]}  Bd5 {[%clk 0:00:53]} 35. Rg1 {[%clk 0:00:38]}  dxc3+ {[%clk 0:00:47]} 36. Kxc3 {[%clk 0:00:38]}  Nb5+ {[%clk 0:00:40]} 37. Kb4 {[%clk 0:00:38]}  Na7 {[%clk 0:00:41]} 38. Bd6 {[%clk 0:00:35]}  Nc6+ {[%clk 0:00:40]} 39. Kc3 {[%clk 0:00:34]}  Ne7 {[%clk 0:00:39]} 40. Bh5 {[%clk 0:00:27]}  e5 {[%clk 0:00:37]} 41. Rg7 {[%clk 0:00:18]}  Ke6 {[%clk 0:00:27]} 42. Rg5 {[%clk 0:00:12]}  Kf6 {[%clk 0:00:20]} 43. Rxe5 {[%clk 0:00:10]}  Bxf7 {[%clk 0:00:15]} 44. Bxf7 {[%clk 0:00:07]}  Rxf7 {[%clk 0:00:11]} 45. Rxe7 {[%clk 0:00:05]}  Rxe7 {[%clk 0:00:11]} 46. Bxe7+ {[%clk 0:00:05]}  Kxe7 {[%clk 0:00:12]} 47. c6 {[%clk 0:00:05]}  Kd6 {[%clk 0:00:05]} 48. cxb7 {[%clk 0:00:06]}  Kc7 {[%clk 0:00:06]} 49. a6 {[%clk 0:00:06]}  Kb8 {[%clk 0:00:07]} 50. Kd4 {[%clk 0:00:07]}  Ka7 {[%clk 0:00:08]} 51. Kc5 {[%clk 0:00:03]}  Kb8 {[%clk 0:00:09]} 52. Kc6 {[%clk 0:00:02]}  Ka7 {[%clk 0:00:09]} 53. Kc7 {[%clk 0:00:02]}  Kxa6 {[%clk 0:00:10]} 54. b8=Q {[%clk 0:00:03]}  Ka5 {[%clk 0:00:11]} 55. Qb3 {[%clk 0:00:03]}  Ka6 {[%clk 0:00:11]} 56. Qa4# {[%clk 0:00:04]} 1-0


[Site "https://www.chess.com"]